fUSD/lending_fUSD_20240628
["ID","MTS","AMOUNT","RATE_DAILY","PERIOD"]
[330581542,1719585044169,-1700.0,0.000177,6]
[330581543,1719585044179,-501.27197359,0.00017703,2]
[330581544,1719585044190,-2300.0,0.000178,6]
[330581545,1719585044200,-192.3042188,0.00017829,2]
[330581546,1719585044210,-2800.0,0.000179,6]
[330581547,1719585044219,-150.0,0.00017961,2]
[330581548,1719585044246,-1304.0,0.00017961,2]
[330581549,1719585044255,-2414.0,0.00017961,2]
[330581550,1719585044265,-3203.0,0.00017961,2]
[330581552,1719585044274,-548.0,0.00017961,2]
[330581553,1719585044283,-1986.0,0.00017961,2]
[330581554,1719585044292,-1069.0,0.00017961,2]
[330581555,1719585044301,-1273.0,0.00017961,2]
[330581556,1719585044310,-360.0,0.00017961,2]
[330581557,1719585044319,-291.0,0.00017961,2]
[330581558,1719585044328,-5804.0,0.00017961,2]
[330581559,1719585044338,-1656.0,0.00017961,2]
[330581560,1719585044348,-1830.0,0.00017961,2]
[330581561,1719585044357,-5172.0,0.00017961,2]
[330581562,1719585044367,-38194.0,0.00017961,2]
[330581563,1719585044376,-1662.0,0.00017961,2]
[330581564,1719585044385,-188.28303005,0.00017981,2]
[330581565,1719585044396,-155.43773497,0.00017981,2]
[330581566,1719585044405,-2533.0351513,0.00017981,2]
[330581567,1719585044414,-150.0,0.00017999,2]
[330581568,1719585044423,-788.1795791,0.00017999,2]
[330581569,1719585044433,-44483.86304848,0.00018,3]
[330581570,1719585044442,-581233.82103513,0.00018,2]
[330581571,1719585044455,-8033.49240071,0.00018,2]
[330581572,1719585044466,-2096.027112,0.00018,2]
[330581573,1719585046090,-226.99073299,0.00015399,2]
[330581577,1719585046100,-156.1593885,0.00015399,2]
[330581580,1719585046110,-260.23706492,0.00016172,2]
[330581582,1719585046120,-155.0,0.00017829,2]
[330581585,1719585046131,-8991.38791687,0.00018,2]
[330581588,1719585046143,-357.75278684,0.00018,2]
[330581592,1719585046153,-1041.17810398,0.00018,2]
[330581602,1719585046533,-799.99453682,0.00014384,2]
[330581606,1719585056518,150.1,0.00031374,30]
[330581610,1719585184298,-594.4651745,0.00011199,2]
[330581611,1719585200615,-26461.0,0.00011199,2]
[330581612,1719585204110,-20000.0,0.00011199,2]
[330581613,1719585204366,-20000.0,0.00011199,2]
[330581614,1719585204819,-20000.0,0.00011199,2]
[330581615,1719585207407,-14763.36526826,0.00011199,2]
[330581616,1719585207429,-5236.63473174,0.00011199,2]
[330581617,1719585227812,482.5951181,0.00031364,30]
[330581618,1719585228544,360.67973171,0.00031364,30]
[330581620,1719585231026,833.63972022,0.00031364,30]
[330581621,1719585232384,1000.0,0.00031364,30]
[330581622,1719585239659,698.09102536,0.00031364,30]
[330581623,1719585242746,205.84709627,0.00031364,30]
[330581624,1719585244232,325.19815644,0.00031364,30]
[330581625,1719585259503,1570.21493767,0.00031364,30]
[330581626,1719585262521,2541.4,0.00031364,120]
[330581627,1719585264765,-496.10852137,0.00011098,2]
[330581629,1719585267869,816.55951605,0.00031364,30]
[330581633,1719585275242,824.36972789,0.00031364,30]
[330581634,1719585276453,1405.62229413,0.00031364,30]
[330581635,1719585277127,659.170113,0.00031364,30]
[330581636,1719585285174,887.96386975,0.00031364,30]
[330581637,1719585290668,197.25023904,0.00031364,30]
[330581638,1719585291173,917.34501649,0.00031364,30]
[330581639,1719585293817,195.72122824,0.00031364,30]
[330581640,1719585300076,-200.0,0.00027397,60]
[330581641,1719585300139,-200.0,0.00030137,60]
[330581642,1719585300185,-158.25137617,0.0003015,120]
[330581643,1719585300236,-150.0,0.00031,90]
[330581644,1719585300284,-154.004085,0.000312,120]
[330581645,1719585300335,-150.0,0.00031357,120]
[330581646,1719585300402,-150.0,0.00032788,120]
[330581647,1719585300450,-1413.84,0.00032876,120]
[330581648,1719585300497,-1413.84,0.00032876,120]
[330581649,1719585300543,-1413.84,0.00032876,120]
[330581650,1719585300591,-1413.84,0.00032876,120]
[330581651,1719585300637,-1413.84,0.00032876,120]
[330581652,1719585300680,-1413.84,0.00032876,120]
[330581653,1719585300724,-1413.84,0.00032876,120]
[330581654,1719585300765,-1413.84,0.00032876,120]
[330581655,1719585300807,-1413.84,0.00032876,120]
[330581656,1719585300849,-1413.84,0.00032876,120]
[330581657,1719585300892,-1413.84,0.00032876,120]
[330581658,1719585300936,-1413.84,0.00032876,120]
[330581659,1719585300979,-1413.84,0.00032876,120]
[330581660,1719585301023,-1413.84,0.00032876,120]
[330581661,1719585301067,-1413.84,0.00032876,120]
[330581662,1719585301112,-1413.84,0.00032876,120]
[330581663,1719585301155,-1413.84,0.00032876,120]
[330581664,1719585301199,-1413.84,0.00032876,120]
[330581665,1719585301252,-1413.84,0.00032876,120]
[330581666,1719585301299,-1413.84,0.00032876,120]
[330581667,1719585301343,-1413.84,0.00032876,120]
[330581668,1719585301389,-1413.84,0.00032876,120]
[330581669,1719585301436,-1413.84,0.00032876,120]
[330581670,1719585301483,-1413.87358541,0.00032876,120]
[330581671,1719585301528,-200.0,0.00032877,60]
[330581672,1719585301574,-150.0,0.00032964,120]
[330581673,1719585301628,-983.18,0.00033151,120]
[330581674,1719585301680,-150.0,0.00033209,120]
[330581675,1719585301728,-477.59452261,0.00033811,40]
[330581676,1719585301772,-380.48830171,0.00033811,40]
[330581677,1719585301815,-729.87119338,0.00033811,40]
[330581678,1719585301856,-1145.76402567,0.00033811,40]
[330581679,1719585301901,-150.0,0.00033995,120]
[330581680,1719585301943,-150.0,0.00034006,120]
[330581681,1719585301993,-150.0,0.00034448,120]
[330581682,1719585302043,-150.0,0.00034865,120]
[330581683,1719585302091,-200.0,0.00035616,60]
[330581684,1719585302144,-150.0,0.00036319,120]
[330581685,1719585302193,-150.0,0.0003659,120]
[330581686,1719585302251,-150.0,0.00037897,120]
[330581687,1719585302294,-182.44308668,0.00038,120]
[330581688,1719585302339,-150.0,0.00038183,120]
[330581689,1719585302382,-1217.5,0.00038356,120]
[330581690,1719585302427,-1217.5,0.00038356,120]
[330581691,1719585302470,-1217.5,0.00038356,120]
[330581692,1719585302514,-1217.5,0.00038356,120]
[330581693,1719585302559,-1217.5,0.00038356,120]
[330581694,1719585302604,-1217.5,0.00038356,120]
[330581695,1719585302647,-1217.5,0.00038356,120]
[330581696,1719585302693,-1217.5,0.00038356,120]
[330581697,1719585302741,-1217.5,0.00038356,120]
[330581698,1719585302786,-1217.5,0.00038356,120]
[330581699,1719585302832,-1217.5,0.00038356,120]
[330581700,1719585302875,-1217.5,0.00038356,120]
[330581701,1719585302920,-1217.5,0.00038356,120]
[330581702,1719585302965,-1217.5,0.00038356,120]
[330581703,1719585303010,-1217.5,0.00038356,120]
[330581704,1719585303055,-1217.5,0.00038356,120]
[330581705,1719585303099,-1217.5,0.00038356,120]
[330581706,1719585303142,-1217.5,0.00038356,120]
[330581707,1719585303186,-1217.5,0.00038356,120]
[330581708,1719585303231,-1217.5,0.00038356,120]
[330581709,1719585303279,-1217.5,0.00038356,120]
[330581710,1719585303324,-1217.5,0.00038356,120]
[330581711,1719585303373,-1217.5,0.00038356,120]
[330581712,1719585303846,-1217.61766341,0.00038356,120]
[330581713,1719585303893,-273.1577579,0.00038356,60]
[330581714,1719585303940,-611.09021646,0.000387,120]
[330581715,1719585303994,-150.0,0.00039659,120]
[330581716,1719585304042,-2000.0,0.00039726,90]
[330581717,1719585304089,-2000.0,0.00039726,90]
[330581718,1719585304138,-151.0,0.0004,120]
[330581719,1719585304187,-151.0,0.0004,120]
[330581720,1719585304235,-1194.60848402,0.0004,120]
[330581721,1719585304282,-298.15,0.0004,120]
[330581722,1719585304330,-922.1090584,0.0004,120]
[330581723,1719585304376,-733.0,0.0004,60]
[330581724,1719585304423,-309.62629908,0.0004,120]
[330581725,1719585304474,-2000.0,0.00040273,92]
[330581726,1719585304523,-2000.0,0.00040273,92]
[330581727,1719585304570,-151.0,0.00040658,120]
[330581728,1719585304624,-2036.0,0.000407,81]
[330581729,1719585304676,-2000.0,0.00040821,94]
[330581730,1719585304723,-2000.0,0.00040821,94]
[330581731,1719585304774,-508.82442213,0.00041095,120]
[330581732,1719585304824,-151.0,0.0004126,120]
[330581733,1719585304868,-151.0,0.00041315,120]
[330581734,1719585304920,-2000.0,0.00041369,96]
[330581735,1719585304970,-2000.0,0.00041369,96]
[330581736,1719585305023,-287.87248608,0.000418,120]
[330581737,1719585305072,-2000.0,0.00041917,98]
[330581738,1719585305118,-2000.0,0.00041917,98]
[330581739,1719585305165,-151.0,0.00041973,120]
[330581740,1719585305216,-2000.0,0.00042465,100]
[330581741,1719585305262,-2000.0,0.00042465,100]
[330581742,1719585305308,-1108.95,0.000425,120]
[330581743,1719585305355,-151.0,0.00042521,120]
[330581744,1719585305399,-151.0,0.0004263,120]
[330581745,1719585305448,-2000.0,0.00043013,102]
[330581746,1719585305499,-2000.0,0.00043013,102]
[330581747,1719585305549,-151.0,0.00043288,120]
[330581748,1719585305600,-2000.0,0.00043561,104]
[330581749,1719585305661,-2000.0,0.00043561,104]
[330581750,1719585305712,-151.0,0.00043781,120]
[330581751,1719585305757,-161.87,0.000438,120]
[330581752,1719585305804,-1142.9,0.00043835,120]
[330581753,1719585305850,-515.89,0.00043835,120]
[330581754,1719585305896,-515.89,0.00043835,120]
[330581755,1719585305942,-515.89,0.00043835,120]
[330581756,1719585305991,-515.89,0.00043835,120]
[330581757,1719585306041,-515.89,0.00043835,120]
[330581758,1719585306087,-515.89,0.00043835,120]
[330581759,1719585306135,-515.89,0.00043835,120]
[330581760,1719585306181,-515.89,0.00043835,120]
[330581761,1719585306226,-515.89,0.00043835,120]
[330581762,1719585306273,-515.89,0.00043835,120]
[330581763,1719585306319,-515.89,0.00043835,120]
[330581764,1719585306364,-515.89,0.00043835,120]
[330581765,1719585306413,-515.89,0.00043835,120]
[330581766,1719585306461,-515.89,0.00043835,120]
[330581767,1719585306509,-515.89,0.00043835,120]
[330581768,1719585306554,-515.89,0.00043835,120]
[330581769,1719585306601,-515.89,0.00043835,120]
[330581770,1719585306648,-515.89,0.00043835,120]
[330581771,1719585306700,-515.89,0.00043835,120]
[330581772,1719585306751,-515.89,0.00043835,120]
[330581773,1719585306798,-515.89,0.00043835,120]
[330581774,1719585306846,-515.89,0.00043835,120]
[330581775,1719585306893,-515.89,0.00043835,120]
[330581776,1719585306941,-515.89755272,0.00043835,120]
[330581777,1719585306995,-151.0,0.00043945,120]
[330581778,1719585307047,-679.787612,0.00044,57]
[330581779,1719585307100,-2000.0,0.00044109,106]
[330581780,1719585307150,-2000.0,0.00044109,106]
[330581781,1719585307200,-2159.54,0.00044109,120]
[330581782,1719585307450,-1120.44755864,0.000442,120]
[330581783,1719585307504,-1120.44755864,0.000442,120]
[330581784,1719585307548,-1120.44755864,0.000442,120]
[330581785,1719585307595,-1120.44755864,0.000442,120]
[330581786,1719585307642,-1120.44755864,0.000442,120]
[330581787,1719585307686,-2239.6,0.0004424,101]
[330581788,1719585307732,-1224.04429431,0.0004438,120]
[330581789,1719585307779,-1224.04429431,0.0004438,120]
[330581790,1719585307825,-1224.04429431,0.0004438,120]
[330581791,1719585307868,-1224.04429431,0.0004438,120]
[330581792,1719585307915,-1224.04429431,0.0004438,120]
[330581793,1719585307961,-1224.04429431,0.0004438,120]
[330581794,1719585308004,-1224.04429431,0.0004438,120]
[330581795,1719585308049,-1224.04429431,0.0004438,120]
[330581796,1719585308094,-1224.04429431,0.0004438,120]
[330581797,1719585308135,-1224.04429431,0.0004438,120]
[330581798,1719585308179,-1224.04429431,0.0004438,120]
[330581799,1719585308224,-1224.04429431,0.0004438,120]
[330581800,1719585308270,-1224.04429431,0.0004438,120]
[330581801,1719585308317,-1224.04429431,0.0004438,120]
[330581802,1719585308366,-1224.04429431,0.0004438,120]
[330581803,1719585308413,-1224.04429431,0.0004438,120]
[330581804,1719585308465,-1224.04429431,0.0004438,120]
[330581805,1719585308513,-1224.04429431,0.0004438,120]
[330581806,1719585308563,-1224.04429431,0.0004438,120]
[330581807,1719585308610,-1224.54,0.0004438,120]
[330581808,1719585308659,-156.08004412,0.0004438,120]
[330581809,1719585308709,-156.08004412,0.0004438,120]
[330581810,1719585308754,-156.08004412,0.0004438,120]
[330581811,1719585308801,-156.58,0.0004438,120]
[330581812,1719585308848,-1090.21913049,0.0004438,120]
[330581813,1719585308896,-1090.21913049,0.0004438,120]
[330581814,1719585308941,-1090.21913049,0.0004438,120]
[330581815,1719585308988,-1090.21913049,0.0004438,120]
[330581816,1719585309035,-1090.21913049,0.0004438,120]
[330581817,1719585309080,-1090.21913049,0.0004438,120]
[330581818,1719585309127,-1090.21913049,0.0004438,120]
[330581819,1719585309176,-1090.21913049,0.0004438,120]
[330581820,1719585309226,-1090.21913049,0.0004438,120]
[330581821,1719585309274,-1090.21913049,0.0004438,120]
[330581822,1719585309321,-1090.21913049,0.0004438,120]
[330581823,1719585309371,-1090.21913049,0.0004438,120]
[330581824,1719585309420,-1090.21913049,0.0004438,120]
[330581825,1719585309471,-1090.21913049,0.0004438,120]
[330581826,1719585309520,-1090.21913049,0.0004438,120]
[330581827,1719585309571,-1090.21913049,0.0004438,120]
[330581828,1719585309630,-1090.21913049,0.0004438,120]
[330581829,1719585309680,-1090.21913049,0.0004438,120]
[330581830,1719585309728,-1090.21913049,0.0004438,120]
[330581831,1719585309777,-1090.71,0.0004438,120]
[330581832,1719585309826,-983.18,0.00044384,120]
[330581833,1719585309888,-151.0,0.00044603,120]
[330581834,1719585309933,-2000.0,0.00044657,108]
[330581835,1719585309978,-2000.0,0.00044657,108]
[330581836,1719585310027,-1695.71806408,0.00044784,60]
[330581837,1719585310076,-2159.54,0.00044931,120]
[330581838,1719585310126,-200.49629149,0.00045,120]
[330581839,1719585310173,-150.0,0.00045,85]
[330581840,1719585310221,-1443.59845876,0.00045,90]
[330581841,1719585310271,-754.999982,0.00045,120]
[330581842,1719585310319,-347.73746497,0.00045,120]
[330581843,1719585310365,-827.30958816,0.00045,45]
[330581844,1719585310412,-151.0,0.00045041,120]
[330581845,1719585310462,-2000.0,0.00045205,110]
[330581846,1719585310507,-2000.0,0.00045205,110]
[330581847,1719585310552,-151.0,0.0004526,120]
[330581848,1719585310604,-150.0,0.00045478,120]
[330581849,1719585310651,-341.98087618,0.000455,90]
[330581850,1719585310698,-2000.0,0.00045753,112]
[330581851,1719585310742,-2000.0,0.00045753,112]
[330581852,1719585310787,-2159.54,0.00045753,120]
[330581853,1719585310834,-151.0,0.00045918,120]
[330581854,1719585310879,-168.0,0.00046,96]
[330581855,1719585310922,-800.0,0.00046,120]
[330581856,1719585310966,-188.9489484,0.00046,100]
[330581857,1719585311015,-955.1,0.00046301,114]
[330581858,1719585311064,-2000.0,0.00046301,114]
[330581859,1719585311111,-151.0,0.00046301,120]
[330581860,1719585311161,-2956.44,0.00046575,120]
[330581861,1719585311207,-2956.44,0.00046575,120]
[330581862,1719585311255,-2956.44,0.00046575,120]
[330581863,1719585311301,-2956.44,0.00046575,120]
[330581864,1719585311347,-2956.44,0.00046575,120]
[330581865,1719585311390,-2956.44,0.00046575,120]
[330581866,1719585311433,-2956.44,0.00046575,120]
[330581867,1719585311475,-2956.44,0.00046575,120]
[330581868,1719585311519,-2956.44,0.00046575,120]
[330581869,1719585311561,-2956.44,0.00046575,120]
[330581870,1719585311606,-2956.44,0.00046575,120]
[330581871,1719585311648,-2956.44,0.00046575,120]
[330581872,1719585311689,-2956.44,0.00046575,120]
[330581873,1719585311730,-2956.44,0.00046575,120]
[330581874,1719585311771,-2956.44,0.00046575,120]
[330581875,1719585311812,-2956.44,0.00046575,120]
[330581876,1719585311853,-2956.44,0.00046575,120]
[330581877,1719585311894,-2956.44,0.00046575,120]
[330581878,1719585311935,-2956.44,0.00046575,120]
[330581879,1719585311978,-2956.44,0.00046575,120]
[330581880,1719585312019,-2956.44,0.00046575,120]
[330581881,1719585312062,-2956.44,0.00046575,120]
[330581882,1719585312103,-2956.44,0.00046575,120]
[330581883,1719585312143,-2956.63973237,0.00046575,120]
[330581884,1719585312184,-2159.54,0.00046575,120]
[330581885,1719585312440,-151.0,0.00046575,120]
[330581886,1719585312484,-2000.0,0.00046849,116]
[330581887,1719585312536,-317.86291422,0.00047,120]
[330581888,1719585312576,-2401.68290546,0.00047,120]
[330581889,1719585312632,-151.0,0.00047233,120]
[330581890,1719585312678,-2000.0,0.00047397,118]
[330581891,1719585312719,-2159.54,0.00047397,120]
[330581892,1719585312762,-150.0,0.00047506,120]
[330581893,1719585312803,-151.0,0.00047562,120]
[330581894,1719585312847,-203.43702869,0.00047656,120]
[330581895,1719585312904,-150.0,0.0004767,120]
[330581896,1719585312954,-4887.59,0.0004778,117]
[330581897,1719585313004,-150.0,0.0004787,120]
[330581898,1719585313047,-151.0,0.0004789,120]
[330581899,1719585313089,-1688.0,0.00047945,120]
[330581900,1719585313130,-2000.0,0.00047945,120]
[330581901,1719585313173,-500000.0,0.00048,120]
[330581902,1719585313217,-700.0,0.00048,120]
[330581903,1719585313261,-1688.0,0.00048082,120]
[330581904,1719585313304,-433.50633328,0.00048192,60]
[330581905,1719585313346,-1688.0,0.00048219,120]
[330581906,1719585313393,-2159.54,0.00048219,120]
[330581907,1719585313439,-1688.0,0.00048356,120]
[330581908,1719585313488,-433.50633328,0.00048384,60]
[330581909,1719585313537,-150.0,0.0004842,120]
[330581910,1719585313584,-2333.46911293,0.00048485,120]
[330581911,1719585313635,-1688.0,0.00048493,120]
[330581912,1719585313680,-441.63,0.00048493,120]
[330581913,1719585313727,-376875.0,0.000485,120]
[330581914,1719585313775,-151.0,0.00048548,120]
[330581915,1719585313820,-433.50633328,0.00048575,60]
[330581916,1719585313867,-1688.0,0.0004863,120]
[330581917,1719585313913,-1688.0,0.00048767,120]
[330581918,1719585313958,-189.37989786,0.00048775,120]
[330581919,1719585314005,-433.50633328,0.00048795,60]
[330581920,1719585314049,-75233.41923332,0.000488,90]
[330581921,1719585314091,-363228.14363867,0.000488,90]
[330581922,1719585314132,-2860.24929449,0.000488,60]
[330581923,1719585314175,-151.0,0.00048822,120]
[330581924,1719585314219,-205.65134366,0.000489,120]
[330581925,1719585314263,-1688.0,0.00048904,120]
[330581927,1719585314308,-433.50633328,0.00048986,60]
[330581928,1719585314352,-500.0,0.00049,120]
[330581929,1719585314396,-500.0,0.00049,120]
[330581930,1719585314443,-500.0,0.00049,120]
[330581931,1719585314490,-500.0,0.00049,120]
[330581932,1719585314534,-500.0,0.00049,120]
[330581933,1719585314576,-500.0,0.00049,120]
[330581934,1719585314631,-500.0,0.00049,120]
[330581935,1719585314677,-500.0,0.00049,120]
[330581936,1719585314723,-641.0,0.00049,120]
[330581937,1719585314767,-500.0,0.00049,120]
[330581938,1719585314811,-500.0,0.00049,120]
[330581939,1719585314855,-500.0,0.00049,120]
[330581940,1719585314899,-500.0,0.00049,120]
[330581941,1719585314941,-500.0,0.00049,120]
[330581942,1719585314984,-500.0,0.00049,120]
[330581943,1719585315029,-500.0,0.00049,120]
[330581944,1719585315073,-500.0,0.00049,120]
[330581945,1719585315116,-500.0,0.00049,120]
[330581946,1719585315162,-500.0,0.00049,120]
[330581947,1719585315205,-500.0,0.00049,120]
[330581948,1719585315252,-500.0,0.00049,120]
[330581949,1719585315297,-500.0,0.00049,120]
[330581950,1719585315342,-500.0,0.00049,120]
[330581951,1719585315388,-500.0,0.00049,120]
[330581952,1719585315433,-500.0,0.00049,120]
[330581953,1719585315477,-500.0,0.00049,120]
[330581954,1719585315522,-500.0,0.00049,120]
[330581955,1719585315566,-500.0,0.00049,120]
[330581956,1719585315612,-500.0,0.00049,120]
[330581957,1719585315659,-500.0,0.00049,120]
[330581958,1719585315706,-500.0,0.00049,120]
[330581959,1719585315755,-500.0,0.00049,120]
[330581960,1719585315802,-500.0,0.00049,120]
[330581961,1719585315846,-500.0,0.00049,120]
[330581962,1719585315890,-500.0,0.00049,120]
[330581963,1719585315936,-500.0,0.00049,120]
[330581964,1719585315981,-500.0,0.00049,120]
[330581965,1719585316026,-500.0,0.00049,120]
[330581966,1719585316071,-500.0,0.00049,120]
[330581967,1719585316116,-500.0,0.00049,120]
[330581968,1719585316162,-500.0,0.00049,120]
[330581969,1719585316207,-500.0,0.00049,120]
[330581970,1719585316253,-500.0,0.00049,120]
[330581971,1719585316298,-500.0,0.00049,120]
[330581972,1719585316343,-500.0,0.00049,120]
[330581973,1719585316387,-500.0,0.00049,120]
[330581974,1719585316431,-500.0,0.00049,120]
[330581975,1719585316845,-500.0,0.00049,120]
[330581976,1719585316893,-500.0,0.00049,120]
[330581977,1719585316942,-500.0,0.00049,120]
[330581978,1719585316987,-500.0,0.00049,120]
[330581979,1719585317033,-500.0,0.00049,120]
[330581980,1719585317078,-500.0,0.00049,120]
[330581981,1719585317123,-500.0,0.00049,120]
[330581982,1719585317167,-500.0,0.00049,120]
[330581983,1719585317210,-500.0,0.00049,120]
[330581984,1719585317256,-500.0,0.00049,120]
[330581985,1719585317299,-500.0,0.00049,120]
[330581986,1719585317342,-500.0,0.00049,120]
[330581987,1719585317385,-500.0,0.00049,120]
[330581988,1719585317432,-500.0,0.00049,120]
[330581989,1719585317480,-500.0,0.00049,120]
[330581990,1719585317524,-500.0,0.00049,120]
[330581991,1719585317567,-500.0,0.00049,120]
[330581992,1719585317612,-500.0,0.00049,120]
[330581993,1719585317660,-500.0,0.00049,120]
[330581994,1719585317705,-500.0,0.00049,120]
[330581995,1719585317751,-500.0,0.00049,120]
[330581996,1719585317794,-500.0,0.00049,120]
[330581997,1719585317838,-553.0,0.00049,120]
[330581998,1719585317879,-500000.0,0.00049,120]
[330581999,1719585317921,-1688.0,0.00049041,120]
[330582000,1719585317961,-2159.54,0.00049041,120]
[330582001,1719585318008,-35026.0,0.0004914,120]
[330582002,1719585318051,-1688.0,0.00049178,120]
[330582003,1719585318097,-151.0,0.00049205,120]
[330582004,1719585318143,-433.50633328,0.00049205,60]
[330582005,1719585318188,-521.93,0.00049315,120]
[330582006,1719585318231,-521.93,0.00049315,120]
[330582007,1719585318275,-521.93,0.00049315,120]
[330582008,1719585318318,-521.93,0.00049315,120]
[330582009,1719585318366,-521.93,0.00049315,120]
[330582010,1719585318415,-521.93,0.00049315,120]
[330582011,1719585318470,-521.93,0.00049315,120]
[330582012,1719585318524,-521.93,0.00049315,120]
[330582013,1719585318575,-521.93,0.00049315,120]
[330582014,1719585318633,-521.93,0.00049315,120]
[330582015,1719585318682,-521.93,0.00049315,120]
[330582016,1719585318734,-521.93,0.00049315,120]
[330582017,1719585318784,-521.93,0.00049315,120]
[330582018,1719585318830,-521.93,0.00049315,120]
[330582019,1719585318878,-521.93,0.00049315,120]
[330582020,1719585318925,-521.93,0.00049315,120]
[330582021,1719585318979,-521.93,0.00049315,120]
[330582022,1719585319026,-521.93,0.00049315,120]
[330582023,1719585319075,-521.93,0.00049315,120]
[330582024,1719585319122,-521.93,0.00049315,120]
[330582025,1719585319171,-521.93,0.00049315,120]
[330582026,1719585319223,-521.93,0.00049315,120]
[330582027,1719585319268,-521.93,0.00049315,120]
[330582028,1719585319315,-521.97187764,0.00049315,120]
[330582029,1719585319364,-1688.0,0.00049315,120]
[330582030,1719585319412,-3349.23,0.00049315,120]
[330582031,1719585319461,-3349.23,0.00049315,120]
[330582032,1719585319508,-3349.23,0.00049315,120]
[330582033,1719585319552,-3349.23,0.00049315,120]
[330582034,1719585319600,-3349.23,0.00049315,120]
[330582035,1719585319647,-3349.23,0.00049315,120]
[330582036,1719585319690,-3349.23,0.00049315,120]
[330582038,1719585319734,-3349.23,0.00049315,120]
[330582039,1719585319778,-3349.23,0.00049315,120]
[330582040,1719585319820,-3349.23,0.00049315,120]
[330582041,1719585319861,-3349.23,0.00049315,120]
[330582042,1719585319905,-3349.23,0.00049315,120]
[330582043,1719585319947,-3349.23,0.00049315,120]
[330582044,1719585319990,-3349.23,0.00049315,120]
[330582045,1719585320032,-3349.23,0.00049315,120]
[330582046,1719585320077,-3349.23,0.00049315,120]
[330582047,1719585320219,-3349.23,0.00049315,120]
[330582048,1719585320261,-3349.23,0.00049315,120]
[330582049,1719585320307,-3349.23,0.00049315,120]
[330582050,1719585320352,-3349.23,0.00049315,120]
[330582051,1719585320396,-3349.23,0.00049315,120]
[330582052,1719585320441,-3349.23,0.00049315,120]
[330582053,1719585320485,-3349.23,0.00049315,120]
[330582054,1719585320529,-3349.24801691,0.00049315,120]
[330582055,1719585320574,-3000.0,0.00049315,120]
[330582056,1719585320627,-3000.0,0.00049315,120]
[330582057,1719585320673,-3000.0,0.00049315,120]
[330582058,1719585320718,-3000.0,0.00049315,120]
[330582059,1719585320764,-3000.0,0.00049315,120]
[330582060,1719585320806,-3000.0,0.00049315,120]
[330582061,1719585320848,-3000.0,0.00049315,120]
[330582062,1719585320890,-3000.0,0.00049315,120]
[330582063,1719585320932,-2441.13978694,0.00049315,120]
[330582064,1719585320980,-500.0,0.00049315,120]
[330582065,1719585321030,-500.0,0.00049315,120]
[330582066,1719585321079,-500.0,0.00049315,120]
[330582067,1719585321125,-150.0,0.00049345,120]
[330582068,1719585321170,-433.50633328,0.00049397,120]
[330582069,1719585321213,-1688.0,0.00049452,120]
[330582070,1719585321267,-700000.0,0.000495,120]
[330582071,1719585321309,-1688.0,0.00049589,120]
[330582072,1719585321351,-500.0,0.00049589,120]
[330582073,1719585321395,-630.53666164,0.00049589,120]
[330582074,1719585321439,-500.0,0.00049589,120]
[330582075,1719585321481,-433.50633328,0.00049616,120]
[330582076,1719585321523,-150.0,0.00049706,120]
[330582077,1719585321568,-1688.0,0.00049726,120]